Cogmind - Beta 13 @@@ ROGUE MODE // 2024.04.17 @ 19:49:02 Player: Wavy Pablo Result: Destroyed by Y-45 Defender with Beam Rifle Performance ------------- Evolutions (2) 1000 Regions Visited (4) 800 Robots Destroyed (30) 150 Value Destroyed (913) 913 Prototype IDs (5) 100 Alien Tech Used (0) 0 Bonus (0) 0 TOTAL SCORE: 2963 Bonus ------- None Cogmind --------- Core Integrity 0/550 Matter 78/300 Energy 140/140 System Corruption 14% Temperature Cool (9) Movement Walking (260) Ox2 Location -8/Storage Parts ------- > --- POWER (2) -------- Light Deuterium Engine > --- PROPULSION (3) --- Aluminum Leg > --- UTILITY (4) ------ Large Storage Unit > --- WEAPON (2) ------- (None) > --- INVENTORY (15) --- Medium Storage Unit Medium Matter Pod (100) ECM Suite Improved Utility Shielding Tractor Beam Peak State ------------ > --- POWER ------------ Light Deuterium Engine Light Deuterium Engine > --- PROPULSION ------- Aluminum Leg Aluminum Leg Aluminum Leg > --- UTILITY ---------- Improved Heat Sink Large Storage Unit Targeting Computer Improved Utility Shielding > --- WEAPON ----------- Advanced Beam Cannon Rocket Launcher > --- INVENTORY -------- Improved Ion Engine Improved Ion Engine Light Deuterium Engine Aluminum Leg Medium Storage Unit Medium Matter Pod ECM Suite Hardlight Generator Tractor Beam Particle Cannon Light Assault Rifle Light Assault Rifle Rocket Launcher [Rating: 24] Favorites ----------- Power Ion Engine Engine Ion Engine Propulsion Aluminum Leg Leg Aluminum Leg Hover Unit Improved Hover Unit Utility Targeting Computer Device ECM Suite Storage Large Storage Unit Processor Targeting Computer Protection Improved Utility Shielding Weapon Light Assault Rifle Energy Gun EM Pulse Gun Energy Cannon Particle Cannon Ballistic Gun Light Assault Rifle Launcher Rocket Launcher Build | -11 -10 -9 -8 -8 ------- Run | Yrd Mat Mat Mat Sto Slots Evolved 4 | . . 2 2 . Power 1 | . . 1 . . Propulsion 1 | . . . 1 . Utility 2 | . . 1 1 . Weapon . | . . . . . Parts Attached 55 | 7 3 22 23 . Power 10 | 1 . 5 4 . Engine 10 | 1 . 5 4 . Core . | . . . . . Reactor . | . . . . . Propulsion 10 | 2 . 5 3 . Treads . | . . . . . Leg 8 | 2 . 3 3 . Wheel . | . . . . . Hover 2 | . . 2 . . Flight . | . . . . . Utility 13 | 1 2 5 5 . Device 5 | . 1 1 3 . Storage 5 | 1 . 4 . . Processor 2 | . 1 . 1 . Hackware . | . . . . . Protection 1 | . . . 1 . Artifact . | . . . . . Weapon 22 | 3 1 7 11 . Energy Gun 3 | 2 . 1 . . Energy Cannon 6 | . 1 1 4 . Ballistic Gun 7 | 1 . 4 2 . Ballistic Cannon . | . . . . . Launcher 6 | . . 1 5 . Special Weapon . | . . . . . Impact Weapon . | . . . . . Slashing Weapon . | . . . . . Piercing Weapon . | . . . . . Special Melee Weapon . | . . . . . Unidentified Prototypes 1 | . . . 1 . Parts Lost 21 | . . 3 18 . Power 5 | . . 1 4 . Propulsion 6 | . . 2 4 . Utility 4 | . . . 4 . Weapon 6 | . . . 6 . Highest Loss Streak 17 | . . 1 17 . To Critical Strikes 1 | . . . 1 . Average Slot Usage (%) 86 | . 81 96 75 27 Engine 17 | . 14 20 14 9 Leg 17 | . 28 16 18 9 Hover 3 | . . 5 . . Device 6 | . 8 6 5 . Storage 12 | . 5 15 10 9 Processor 9 | . 9 11 6 . Protection 1 | . . . 5 . Energy Cannon 4 | . . 4 6 . Ballistic Gun 12 | . 14 15 6 . Naked Turns . | . . . . . Heaviest Build 41 | 11 12 36 41 25 Greatest Support 30 | 20 20 20 30 10 Greatest Overweight (x) 2 | 1 . 2 2 2 Average Overweight (x) . | . . . 1 2 Largest Inventory Capacity 15 | 8 8 15 15 15 Average Capacity 11 | 6 6 11 15 15 Most Carried 14 | 6 4 12 14 5 Average Carried 6 | 2 2 6 11 5 Final Capacity 15 | 8 5 15 15 15 Final Carried 12 | 2 3 12 5 5 Class Distribution -------------------- 91% | Mutant 8% | Scavenger-Mutant Dominant Class ---------------- Mutant | -10/Materials Mutant | -9/Materials Mutant | -8/Materials Mutant | -8/Storage Resources | -11 -10 -9 -8 -8 ----------- Run | Yrd Mat Mat Mat Sto Matter Collected 762 | 54 39 545 124 . Remotely 106 | . . 106 . . Salvage Created 1040 | . 39 735 266 . Parts 60 | . 4 47 9 . Haulers Intercepted 1 | . . . 1 . Recyclers Shooed . | . . . . . Parts Field Recycled . | . . . . . Retrieved Matter . | . . . . . Parts Self-Destructed . | . . . . . Prevented . | . . . . . Kills | -11 -10 -9 -8 -8 ------- Run | Yrd Mat Mat Mat Sto Combat Hostiles Destroyed 26 | . 1 18 7 . Guns 10 | . 1 8 1 . Cannons 9 | . . 7 2 . AOE 6 | . . 3 3 . Classes Destroyed 7 | . 1 4 2 . Hauler 1 | . . . 1 . Recycler 2 | . . 2 . . Watcher 1 | . . 1 . . Swarmer 7 | . . 7 . . Grunt 14 | . 1 8 5 . Brawler 1 | . . . 1 . Sentry 4 | . . 3 1 . Best Kill Streak 6 | . 1 6 3 . Combat Bots Only 4 | . 1 4 3 . Max Kills in Single Turn 3 | . 1 3 2 . Gunslinging . | . . . . . Exploded 3 | . . 3 2 . Melee . | . . . . . Uniques/NPCs Destroyed . | . . . . . Combat | -11 -10 -9 -8 -8 -------- Run | Yrd Mat Mat Mat Sto Hostile Shots Fired 246 | . 6 88 151 1 Missed 57 | . . 23 34 . Damage Taken 2953 | . 67 758 2114 14 Core 754 | . 33 163 544 14 Absorbed by Shields 56 | . . . 56 . Redirected to Shielding 81 | . . . 81 . Regen/Repaired (Parts) 32 | . . 32 . . Core Remaining (%) 81 | 100 86 59 . . Volleys Fired 86 | . 8 43 35 . Largest 2 | . 1 2 2 . Hottest 136 | . 20 108 136 . Shots Fired 145 | . 8 80 57 . Gun 73 | . 8 47 18 . Cannon 58 | . . 32 26 . Launcher 14 | . . 1 13 . Special . | . . . . . Kinetic 68 | . 8 42 18 . Thermal 58 | . . 32 26 . Explosive 14 | . . 1 13 . Electromagnetic 5 | . . 5 . . Robot Hit Streak 17 | . 1 17 7 . Robot Miss Streak 4 | . 4 2 3 . Penetration Max . | . . . . . Secondary Targets 1 | . . 1 . . Max Gunslinging Chain 1 | . . 1 . . Shots Hit Robots 100 | . 3 58 39 . Core Hits 52 | . 3 32 17 . Critical Kills 3 | . . 2 1 . Critical Parts Destroyed . | . . . . . Critical Strikes 3 | . . 2 1 . Meltdown 1 | . . . 1 . Destroy 2 | . . 2 . . Melee Attacks . | . . . . . Impact . | . . . . . Slashing . | . . . . . Piercing . | . . . . . Sneak Attacks . | . . . . . Combat Hostiles . | . . . . . Follow-up Attacks . | . . . . . Damage Inflicted 2226 | . 25 963 1238 . Guns 374 | . 25 275 74 . Cannons 964 | . . 557 407 . Explosions 888 | . . 131 757 . Melee . | . . . . . Ramming . | . . . . . Kinetic 337 | . 25 238 74 . Thermal 964 | . . 557 407 . Explosive 888 | . . 131 757 . Electromagnetic 37 | . . 37 . . Impact . | . . . . . Slashing . | . . . . . Piercing . | . . . . . Highest Corruption 14 | . . . 14 14 Average Corruption 13 | . . . 12 14 Corruption Purged . | . . . . . Corruption Blocked . | . . . . . Effects 10 | . . . 7 3 Message Errors 2 | . . . 1 1 Matter Fused 3 | . . . 2 1 Heat Flow Errors 1 | . . . 1 . Data Loss (minor) 3 | . . . 2 1 Misdirections 1 | . . . 1 . Overload Shots . | . . . . . Overflow Damage 40 | . . 7 33 . Projectiles 3 | . . 1 2 . Explosions 37 | . . 6 31 . Melee . | . . . . . Knockbacks . | . . . . . Impact . | . . . . . Kinetic . | . . . . . Secondary . | . . . . . Self-Inflicted Damage 221 | . . 49 172 . Shots 7 | . . 1 6 . Rammed . | . . . . . Targets Rammed . | . . . . . Kicked . | . . . . . Crushed . | . . . . . Highest Temperature 473 | . 6 473 345 . Average Temperature 139 | . 6 143 136 . Received Heat Transfer 1266 | . 36 237 984 9 Effects 4 | . . 3 1 . Shutdowns 1 | . . 1 . . Energy Bleed 3 | . . 2 1 . Siege Activations . | . . . . . Robots Corrupted . | . . . . . Combat Hostiles . | . . . . . Parts Fried 1 | . . 1 . . Impact Corruptions . | . . . . . Robots Melted 1 | . . . 1 . Combat Hostiles 1 | . . . 1 . Parts Melted 7 | . . 2 5 . Heat Transferred 1739 | . . 999 740 . Parts Sabotaged . | . . . . . Parts Stolen . | . . . . . Parts Stripped . | . . . . . Power Chain Reactions . | . . . . . Alert | -11 -10 -9 -8 -8 ------- Run | Yrd Mat Mat Mat Sto Peak Influence 380 | . 45 267 380 135 Initial 135 | . . 18 104 135 Average 177 | . 11 189 245 135 Maximum Alert Level 1 | . . 1 1 . Low Security (%) 48 | 100 100 42 21 100 Level 1 51 | . . 57 78 . Level 2 . | . . . . . Level 3 . | . . . . . Level 4 . | . . . . . Level 5 . | . . . . . High Security . | . . . . . Max Security . | . . . . . Squads Dispatched 5 | . 2 2 1 . Investigation 2 | . 1 . 1 . Extermination . | . . . . . Reinforcement 3 | . 1 2 . . Assault . | . . . . . Garrison . | . . . . . Intercept . | . . . . . Searches Triggered . | . . . . . Construction Impeded . | . . . . . Haulers Reinforced . | . . . . . Active Scanning Responses . | . . . . . Cargo Convoy Interrupts . | . . . . . Stealth | -11 -10 -9 -8 -8 --------- Run | Yrd Mat Mat Mat Sto Distress Signals 4 | . . 2 2 . Communications Jammed . | . . . . . Distress Signals . | . . . . . Times Spotted 47 | . 2 28 16 1 Peak Tracking Total 8 | . 2 5 8 . Tactical Retreats 5 | . . 3 2 . Traps | -11 -10 -9 -8 -8 ------- Run | Yrd Mat Mat Mat Sto Traps Triggered 1 | . 1 . . . Indirectly . | . . . . . Trap Hack Attempts . | . . . . . Triggered . | . . . . . Disarmed . | . . . . . Reprogrammed . | . . . . . Reused . | . . . . . Traps Extracted . | . . . . . Installed . | . . . . . Triggered . | . . . . . Machines | -11 -10 -9 -8 -8 ---------- Run | Yrd Mat Mat Mat Sto Machines Disabled 4 | . . 1 3 . Max in Single Turn 2 | . . 1 2 . Machines Repaired . | . . . . . Machines Dismantled . | . . . . . Machines Sabotaged . | . . . . . Overloaded Fab Kills . | . . . . . Hacking | -11 -10 -9 -8 -8 --------- Run | Yrd Mat Mat Mat Sto Machines Accessed 6 | . . 4 2 . Terminals 4 | . . 2 2 . Fabricators . | . . . . . Repair Stations 1 | . . 1 . . Recycling Units 1 | . . 1 . . Scanalyzers . | . . . . . Garrison Access . | . . . . . Total Hacks 24 | . . 17 7 . Successful 19 | . . 14 5 . Failed 5 | . . 3 2 . Catastrophic 1 | . . . 1 . Database Lockouts . | . . . . . Manual . | . . . . . Terminals 17 | . . 10 7 . Fabricators . | . . . . . Repair Stations 4 | . . 4 . . Recycling Units 3 | . . 3 . . Scanalyzers . | . . . . . Garrison Access . | . . . . . Terminal Hacks 14 | . . 9 5 . Record 4 | . . 2 2 . Prototype ID Bank 2 | . . 1 1 . Emergency Access Points 1 | . . 1 . . Alert Level 2 | . . 2 . . Locate Traps 1 | . . 1 . . Dispatch Records 1 | . . 1 . . Zone Layout 3 | . . 1 2 . Fabricator Hacks . | . . . . . Repair Station Hacks 3 | . . 3 . . Scan Component 2 | . . 2 . . Repair 1 | . . 1 . . Recycling Unit Hacks 2 | . . 2 . . Recycle Component 1 | . . 1 . . Report Inventory 1 | . . 1 . . Scanalyzer . | . . . . . Garrison Access Hacks . | . . . . . Unauthorized Hacks . | . . . . . Terminals . | . . . . . Fabricators . | . . . . . Repair Stations . | . . . . . Recycling Units . | . . . . . Scanalyzers . | . . . . . Garrison Access . | . . . . . Data Cores Recovered . | . . . . . Used . | . . . . . Hacking Detections 5 | . . 3 2 . Full Trace Events 3 | . . 2 1 . Feedback Events . | . . . . . Feedback Blocked . | . . . . . Robot Schematics Acquired . | . . . . . Robots Built . | . . . . . Authchips . | . . . . . Time . | . . . . . Total Robot Build Rating . | . . . . . Part Schematics Acquired . | . . . . . Parts Built . | . . . . . Authchips . | . . . . . Time . | . . . . . Total Part Build Rating . | . . . . . Parts Repaired 1 | . . 1 . . Time 32 | . . 32 . . Parts Recycled 1 | . . 1 . . Recycled Matter . | . . . . . Retrieved Matter . | . . . . . Retrieved Components . | . . . . . Parts Scanalyzed . | . . . . . Part Schematics Acquired . | . . . . . Parts Damaged . | . . . . . Bothacking | -11 -10 -9 -8 -8 ------------ Run | Yrd Mat Mat Mat Sto Used RIF Installer . | . . . . . Robots Hacked . | . . . . . Non-combat . | . . . . . Combat . | . . . . . Robot Hacks Applied . | . . . . . Relay Couplers Released . | . . . . . Fabnet Peak Effective % . | . . . . . Robots Rewired . | . . . . . Allies Hacked . | . . . . . Hacks Repelled . | . . . . . Allies | -11 -10 -9 -8 -8 -------- Run | Yrd Mat Mat Mat Sto Total Allies . | . . . . . Largest Group . | . . . . . Highest-Rated Group . | . . . . . Highest-Rated Ally . | . . . . . Total Orders . | . . . . . Ally Attacks . | . . . . . Total Damage . | . . . . . Kills . | . . . . . Allies Corrupted . | . . . . . Allies Melted . | . . . . . Intel | -11 -10 -9 -8 -8 ------- Run | Yrd Mat Mat Mat Sto Robot Analysis Total . | . . . . . Derelict Logs Recovered . | . . . . . Drone Launches . | . . . . . Drone Recoveries . | . . . . . Exploration | -11 -10 -9 -8 -8 ------------- Run | Yrd Mat Mat Mat Sto Turns Passed 1712 | 48 153 1046 373 92 Spaces Moved 743 | 43 111 439 114 36 Core 29 | 29 . . . . Treads . | . . . . . Legs 607 | 14 111 332 114 36 Wheels . | . . . . . Hover 107 | . . 107 . . Flight . | . . . . . Fastest Speed 50 | 50 120 116 190 260 Average Speed 167 | 78 120 170 204 260 Slowest Speed 260 | 120 120 190 260 260 Overloaded Moves . | . . . . . Propulsion Burnouts . | . . . . . Robots Hopped . | . . . . . Cave-ins Triggered . | . . . . . Exploration Rate (%) 20 | 3 23 51 17 10 Regions Visited 4 Branch Regions 1 Pre-discovered Areas . | . . . . . Known Exits Taken . | . . . . . Unknown Exits Taken 4 | 1 1 1 1 . Scrap Searched . | . . . . . Spaces Dug . | . . . . . Terrain Destroyed 108 | . . 6 102 . Melee . | . . . . . Projectile 1 | . . . 1 . AOE 107 | . . 6 101 . Terrain Rammed . | . . . . . Walls Destroyed . | . . . . . Machines Disabled . | . . . . . Actions | -11 -10 -9 -8 -8 --------- Run | Yrd Mat Mat Mat Sto Total 1076 | 56 125 662 197 36 Wait 147 | . . 130 17 . Move 739 | 42 110 438 113 36 Hop . | . . . . . Pick Up 37 | 6 3 21 7 . Fast Attach 1 | 1 . . . . Attach 29 | 5 3 9 12 . Detach 5 | 1 1 3 . . Swap 25 | 1 . 13 11 . Drop 7 | . . 5 2 . Fire 86 | . 8 43 35 . Melee . | . . . . . Ram . | . . . . . Kick . | . . . . . Crush . | . . . . . Escape Stasis . | . . . . . Rewire . | . . . . . Trap . | . . . . . Miscellaneous . | . . . . . Route ------- -11/Scrapyard -10/Materials -9/Materials (discovered 2 exits: *Mat / [*Min]) -8/Materials -8/Storage History --------- Turn | Location | Event 13 | -11/Scrapyard | Discovered new exit (range 15) 49 | -11/Scrapyard | Entered Materials 156 | -10/Materials | Discovered new exit (range 8) 202 | -10/Materials | Entered another Materials area 202 | -9/Materials | Evolved 2 slots: Power x1, Utility x1 300 | -9/Materials | Build established: Mutant 431 | -9/Materials | Repaired Particle Cannon? 832 | -9/Materials | Discovered new exit (range 13) 1082 | -9/Materials | Discovered new exit (range 15) 1248 | -9/Materials | Entered another Materials area 1248 | -8/Materials | Evolved 2 slots: Propulsion x1, Utility x1 1529 | -8/Materials | System corruption reached 10% 1549 | -8/Materials | Core integrity fell below 50% 1574 | -8/Materials | Discovered new exit (range 11) 1577 | -8/Materials | Core integrity fell below 20% 1594 | -8/Materials | Lost 17 parts (4p3n4u6w) 1621 | -8/Materials | Entered Storage 1713 | -8/Storage | Destroyed by Y-45 Defender with Beam Rifle Last Messages --------------- Heavy class robot, which gives away their position but also has a chance to call more squads to reinforce the local area while you are within range. 01594_ U-05 Engineer builds a Door. 01595_ System corrupted: Component data lost. 01598_ U-05 Engineer builds a Wall. 01603_ U-05 Engineer lays Concrete. 01606_ W-25 Informer sends out distress signal. 01611_ T-07 Excavator suffers critical hit (Burn). 01615_ System corrupted: Matter fused (-7). 01621_ W-25 Informer sends out distress signal. LOCATION=UNKNOWN GOAL=ESCAPE 01629_ Connecting with Terminal... 01629_ Current location identified: Storage 01657_ System corrupted: Matter fused (-5). 01674_ X8H2VES<>5K37SX1M4HVL NQ7CXFJ